lending/lending_fUSD_20260306
["ID","MTS","AMOUNT","RATE_DAILY","PERIOD"]
[407759750,1772770243092,-150.109,0.0001969,2]
[407759751,1772770243101,-150.0,0.0001969,2]
[407759752,1772770243111,-150.0,0.0001969,2]
[407759753,1772770243119,-150.0,0.0001969,2]
[407759754,1772770243128,-150.149,0.0001969,2]
[407759755,1772770243137,-346.99936648,0.00019735,2]
[407759756,1772770243146,-437.0,0.00019742,2]
[407759757,1772770243155,-437.0,0.00019745,2]
[407759758,1772770243164,-168.0,0.00019752,2]
[407759759,1772770243173,-164.05,0.0001976,2]
[407759760,1772770243182,-152.0,0.00019765,19]
[407759761,1772770243191,-437.0,0.00019783,2]
[407759762,1772770243199,-437.0,0.00019786,2]
[407759763,1772770243208,-646.0,0.00019787,2]
[407759764,1772770243218,-150.0,0.00019787,2]
[407759765,1772770243228,-150.0,0.00019787,2]
[407759766,1772770243237,-150.0,0.00019787,2]
[407759767,1772770243246,-150.0,0.00019787,2]
[407759768,1772770243255,-151.0,0.00019787,2]
[407759769,1772770243264,-437.0,0.0001979,2]
[407759770,1772770243274,-500.0,0.00019799,2]
[407759771,1772770243283,-500.0,0.00019799,2]
[407759772,1772770243293,-143964.81408509,0.000198,5]
[407759773,1772770243303,-2010.0,0.000198,2]
[407759774,1772770243313,-20100.0,0.000198,2]
[407759775,1772770243324,-847.0,0.00019829,2]
[407759776,1772770243337,-437.0,0.00019831,2]
[407759777,1772770243346,-500.0,0.0001984,2]
[407759778,1772770243599,-1000.0,0.00019842,2]
[407759779,1772770243609,-437.0,0.00019854,2]
[407759780,1772770243618,-25000.0,0.00019856,3]
[407759781,1772770243627,-25000.0,0.00019865,3]
[407759782,1772770243637,-25000.0,0.00019874,3]
[407759783,1772770243646,-882.524513,0.00019874,2]
[407759784,1772770243657,-25000.0,0.00019882,3]
[407759785,1772770243666,-153.26719895,0.00019886,2]
[407759786,1772770243676,-25000.0,0.00019891,3]
[407759787,1772770243686,-5800.0,0.00019892,2]
[407759788,1772770243696,-437.0,0.00019898,2]
[407759789,1772770243706,-152.0,0.00019898,20]
[407759790,1772770243718,-500.0,0.00019899,2]
[407759791,1772770243727,-500.0,0.00019899,2]
[407759792,1772770243737,-25000.0,0.000199,3]
[407759793,1772770243747,-10000.0,0.000199,2]
[407759794,1772770243756,-239.09203556,0.000199,2]
[407759795,1772770243766,-21510.35850006,0.000199,3]
[407759796,1772770243776,-5800.0,0.000199,2]
[407759797,1772770243785,-2190.3106072,0.000199,2]
[407759798,1772770243795,-1135.24655341,0.000199,2]
[407759799,1772770243804,-196.58679572,0.000199,3]
[407759800,1772770243813,-239.74659946,0.000199,2]
[407759801,1772770243823,-3325.0,0.000199,2]
[407759802,1772770243832,-712.1480206,0.00019914,2]
[407759803,1772770243842,-437.0,0.0001994,2]
[407759805,1772770243852,-168.0,0.00019941,2]
[407759806,1772770243862,-437.0,0.00019947,2]
[407759808,1772770243871,-437.0,0.00019965,2]
[407759809,1772770243880,-437.0,0.0001997,2]
[407759810,1772770243890,-500.0,0.00019973,2]
[407759811,1772770243899,-500.0,0.00019973,2]
[407759812,1772770243909,-546.12894098,0.00019973,2]
[407759813,1772770243918,-510.95525373,0.00019973,2]
[407759814,1772770243927,-547.9842787,0.00019973,2]
[407759815,1772770243937,-500.0,0.00019973,2]
[407759816,1772770243946,-500.0,0.00019973,2]
[407759817,1772770243955,-500.0,0.00019973,2]
[407759818,1772770243965,-500.0,0.00019973,2]
[407759819,1772770243974,-500.0,0.00019973,2]
[407759820,1772770243984,-229.79782269,0.00019973,2]
[407759821,1772770243993,-500.52071293,0.00019973,2]
[407759822,1772770244003,-500.0,0.00019973,2]
[407759823,1772770244012,-500.0,0.00019973,2]
[407759824,1772770244021,-500.0,0.00019973,2]
[407759825,1772770244031,-500.0,0.00019973,2]
[407759826,1772770244040,-500.0,0.00019973,2]
[407759827,1772770244049,-500.0,0.00019973,2]
[407759828,1772770244059,-500.0,0.00019973,2]
[407759829,1772770244068,-500.0,0.00019973,2]
[407759830,1772770244078,-331.25166911,0.00019973,2]
[407759831,1772770244087,-500.0,0.00019973,2]
[407759832,1772770244097,-500.0,0.00019973,2]
[407759833,1772770244107,-168.9717679,0.00019973,2]
[407759834,1772770244119,-500.0,0.00019973,2]
[407759835,1772770244128,-500.0,0.00019973,2]
[407759836,1772770244137,-500.0,0.00019973,2]
[407759837,1772770244146,-500.0,0.00019973,2]
[407759838,1772770244156,-500.0,0.00019973,2]
[407759839,1772770244166,-500.0,0.00019973,2]
[407759840,1772770244175,-500.46240701,0.00019973,2]
[407759841,1772770244186,-500.0,0.00019973,2]
[407759842,1772770244197,-500.0,0.00019973,2]
[407759843,1772770244207,-374.18596542,0.00019973,2]
[407759844,1772770244218,-416.60994473,0.00019973,2]
[407759845,1772770244228,-394.98010237,0.00019973,2]
[407759846,1772770244238,-376.45504359,0.00019973,2]
[407759847,1772770244248,-450.95442545,0.00019973,2]
[407759848,1772770244257,-151.0,0.00019979,2]
[407759849,1772770244267,-437.0,0.00019979,2]
[407759850,1772770244276,-150.0,0.0001998,2]
[407759851,1772770244285,-229.64083117,0.0001998,2]
[407759852,1772770244296,-437.0,0.00019981,2]
[407759853,1772770244306,-607.0,0.00019982,2]
[407759854,1772770244315,-150.0,0.00019982,2]
[407759855,1772770244325,-150.0,0.00019982,2]
[407759856,1772770244334,-150.0,0.00019982,2]
[407759857,1772770244345,-227.0,0.00019982,2]
[407759858,1772770244355,-437.0,0.00019987,2]
[407759859,1772770244364,-500.0,0.00019987,2]
[407759860,1772770244373,-500.0,0.00019987,2]
[407759861,1772770244383,-500.0,0.00019987,2]
[407759862,1772770244392,-500.0,0.00019987,2]
[407759863,1772770244402,-236.04759338,0.00019987,2]
[407759864,1772770244411,-162.13251526,0.0001999,2]
[407759865,1772770244425,-228.6750303,0.00019996,2]
[407759866,1772770244435,-500.0,0.00019997,2]
[407759867,1772770244444,-500.0,0.00019997,2]
[407759868,1772770244453,-151.0,0.00019997,2]
[407759869,1772770244464,-500.0,0.00019998,2]
[407759870,1772770244474,-500.0,0.00019998,2]
[407759871,1772770244484,-169.70241436,0.00019998,2]
[407759872,1772770244494,-500.0,0.00019998,2]
[407759873,1772770244503,-513.917388,0.00019998,2]
[407759874,1772770244512,-500.0,0.00019998,2]
[407759875,1772770244521,-245171.1633047,0.00019998,2]
[407759876,1772770244531,-158.413,0.00019999,2]
[407759877,1772770244540,-500.0,0.00019999,2]
[407759878,1772770244549,-500.0,0.00019999,2]
[407759879,1772770244557,-507.77838834,0.00019999,2]
[407759880,1772770244566,-500.0,0.00019999,2]
[407759881,1772770244576,-500.0,0.00019999,2]
[407759882,1772770244585,-500.0,0.00019999,2]
[407759883,1772770244594,-500.0,0.00019999,2]
[407759884,1772770244603,-632.5100037,0.00019999,2]
[407759885,1772770244620,-500.0,0.00019999,2]
[407759886,1772770244630,-500.0,0.00019999,2]
[407759887,1772770244639,-500.0,0.00019999,2]
[407759888,1772770244649,-500.0,0.00019999,2]
[407759889,1772770244658,-500.0,0.00019999,2]
[407759890,1772770244667,-500.0,0.00019999,2]
[407759891,1772770244676,-447.90819505,0.00019999,2]
[407759892,1772770244685,-500.0,0.00019999,2]
[407759893,1772770244694,-500.0,0.00019999,2]
[407759894,1772770244703,-500.0,0.00019999,2]
[407759895,1772770244713,-500.0,0.00019999,2]
[407759896,1772770244722,-500.0,0.00019999,2]
[407759897,1772770244731,-500.0,0.00019999,2]
[407759898,1772770244741,-500.0,0.00019999,2]
[407759899,1772770244750,-516.19561714,0.00019999,2]
[407759900,1772770244759,-500.0,0.00019999,2]
[407759901,1772770244768,-500.0,0.00019999,2]
[407759902,1772770244777,-173.92959413,0.00019999,2]
[407759903,1772770244786,-150.0,0.00019999,2]
[407759904,1772770244795,-232.72199376,0.00019999,2]
[407759905,1772770244804,-151.0,0.0002,2]
[407759906,1772770244814,-151.0,0.0002,2]
[407759907,1772770244823,-151.0,0.0002,2]
[407759909,1772770244832,-214.61274915,0.0002,2]
[407759910,1772770244841,-3000.0,0.0002,7]
[407759911,1772770244850,-208997.18396332,0.0002,2]
[407759912,1772770245934,-500.0,0.00015855,2]
[407759913,1772770245943,-500.0,0.00015855,2]
[407759914,1772770245953,-500.0,0.00015855,2]
[407759915,1772770245964,-500.0,0.00015855,2]
[407759916,1772770245973,-500.0,0.00015855,2]
[407759917,1772770245982,-500.0,0.00015855,2]
[407759918,1772770245991,-500.0,0.00015855,2]
[407759919,1772770246000,-500.0,0.00015855,2]
[407759920,1772770246009,-500.0,0.00015855,2]
[407759921,1772770246018,-500.0,0.00015855,2]
[407759922,1772770246026,-432.97762237,0.00015855,2]
[407759923,1772770246035,-500.0,0.00015855,2]
[407759924,1772770246046,-500.0,0.00015855,2]
[407759925,1772770246057,-5990.0,0.00019596,2]
[407759926,1772770246066,-5034.28261408,0.0002,2]
[407759927,1772770246104,-394.27056197,0.00015855,2]
[407759928,1772770246118,-105.72943803,0.00015855,2]
[407759929,1772770246127,-289.74256197,0.00015855,2]
[407759930,1772770246138,-210.25743803,0.00015855,2]
[407759931,1772770246147,-1880.15153855,0.0002,2]
[407759932,1772770246159,-1134.17202255,0.0002,2]
[407759933,1772770246170,-373.5644,0.0002,2]
[407759935,1772770246214,-857.81402166,0.0002,2]
[407759936,1772770246225,-4921.54303224,0.0002,2]
[407759937,1772770246266,-500.0,0.00015855,2]
[407759939,1772770246275,-500.0,0.00015855,2]
[407759941,1772770246284,-500.0,0.00015855,2]
[407759943,1772770246294,-151.0,0.00016155,2]
[407759944,1772770246303,-140339.01220666,0.0002,2]
[407759945,1772770246313,-76773.17387598,0.0002,2]
[407759946,1772770246329,-500.0,0.00015855,2]
[407759947,1772770246338,-911764.70537759,0.0002,2]
[407759948,1772770246347,-197.91,0.0002,120]
[407759949,1772770246357,-222.31407379,0.0002,2]
[407759950,1772770246367,-10000.0,0.0002,2]
[407759951,1772770246376,-150.0,0.0002,2]
[407759952,1772770246387,-10441.37485007,0.0002,2]
[407759953,1772770246397,-1233690.88604146,0.0002,2]
[407759954,1772770246583,-2432.6275441,0.00015775,2]
[407759955,1772770246594,-423.0969719,0.00015775,2]
[407759956,1772770246604,-500.0,0.00015855,2]
[407759957,1772770246613,-500.0,0.00015855,2]
[407759958,1772770246623,-500.0,0.00015855,2]
[407759959,1772770246631,-189.59075691,0.00015855,2]
[407759960,1772770246643,-310.40924309,0.00015855,2]
[407759961,1772770246653,-500.0,0.00015855,2]
[407759962,1772770246662,-500.0,0.00015855,2]
[407759963,1772770246671,-500.0,0.00015855,2]
[407759964,1772770246681,-4212.63509314,0.0002,2]
[407759965,1772770246693,-9449.51153875,0.0002,2]
[407759966,1772770246704,-5642.70196642,0.0002,2]
[407759967,1772770246727,-36046.72332976,0.0002,2]
[407759968,1772770246745,-444.58999998,0.0002,2]
[407759969,1772770253467,503.0,0.00014,2]
[407759970,1772770314373,502.0,0.00014,2]
[407759971,1772770345285,112.10320354,0.00012,2]
[407759972,1772770345307,387.89679646,0.00012,2]
[407759973,1772770345744,500.0,0.00012,2]
[407759974,1772770346219,261.69842943,0.00012,2]
[407759975,1772770346246,238.30157057,0.00012,2]
[407759976,1772770346697,500.0,0.00012,2]
[407759977,1772770347151,500.0,0.00010379,2]
[407759978,1772770347185,500.0,0.00012,2]
[407759979,1772770347562,700.0,0.00012,2]
[407759980,1772770347679,500.0,0.00010379,2]
[407759981,1772770348073,500.0,0.00010379,2]
[407759982,1772770348139,800.0,0.00010379,2]
[407759983,1772770348555,500.0,0.00012,2]
[407759984,1772770348586,918.72938126,0.00010379,2]
[407759985,1772770350548,500.0,0.00012,2]
[407759986,1772770537959,-171.0,0.000151,2]
[407759987,1772770588812,553.0593,0.00014,2]
[407759988,1772770609473,4446.9507,0.00015668,2]
[407759989,1772770609498,5000.01,0.00015668,2]
[407759990,1772770609519,5000.01,0.00015668,2]
[407759991,1772770609543,553.0293,0.00015668,2]
[407759992,1772770628683,5005.585723,7.945e-05,2]
[407759993,1772770640815,500.0,0.00012,2]
[407759994,1772770641290,500.0,0.00012,2]
[407759995,1772770641768,500.0,0.00010668,2]
[407759996,1772770650035,500.0,0.00012,2]
[407759997,1772770669199,428.42,7.608e-05,2]
[407759998,1772770669421,428.42,8.009e-05,2]
[407759999,1772770669624,428.42,8.409e-05,2]
[407760000,1772770669828,428.42,8.809e-05,2]
[407760001,1772770670027,428.42,9.21e-05,2]
[407760002,1772770670380,428.42,9.61e-05,2]
[407760003,1772770670584,428.42,0.00010011,2]
[407760004,1772770670770,428.42,0.00010411,2]
[407760005,1772770672047,428.42,0.00010812,2]
[407760006,1772770672087,428.42,0.00011212,2]
[407760007,1772770672122,428.42,0.00011612,2]
[407760008,1772770672165,428.42,0.00012013,2]
[407760009,1772770672204,428.42,0.00012413,2]
[407760010,1772770677501,428.42,0.00012814,2]
[407760011,1772770677729,428.42,0.00013214,2]
[407760012,1772770677922,428.42,0.00013615,2]
[407760013,1772770678132,428.42,0.00014015,2]
[407760014,1772770678332,428.42,0.00014416,2]
[407760015,1772770678529,428.42,0.00014816,2]
[407760016,1772770680250,503.0,0.00014,2]
[407760017,1772770699130,217.523419,0.00014968,7]
[407760018,1772770856305,291.905346,0.00014968,7]
[407760019,1772770936928,508.61247454,0.00012,2]
[407760020,1772770937031,511.52465437,0.00012,2]
[407760021,1772770940324,500.0,0.00012,2]
[407760022,1772770940851,500.0,0.00012,2]
[407760023,1772770941302,500.0,0.00012,2]
[407760024,1772770941791,500.0,0.000101,2]
[407760025,1772770941818,500.0,0.00012,2]
[407760026,1772770942287,500.0,0.000101,2]
[407760027,1772770942317,507.15341112,0.000101,2]
[407760028,1772770945739,500.92571844,0.00012,2]
[407760040,1772770962494,-185.0,0.000151,2]
[407760041,1772770962526,-166.0,0.000151,2]
[407760042,1772770962555,-152.0,0.000151,2]
[407760045,1772770967136,-300.0,0.00015128,2]
[407760047,1772770991360,166.0,0.00015129,2]
[407760048,1772770992239,153.0,0.00015129,2]
[407760049,1772770996944,-1062.32064698,0.00015129,2]
[407760050,1772770997123,-2124.64129396,0.00015129,2]
[407760051,1772770997197,-750.72741208,0.00015129,2]
[407760052,1772770997225,-642.97646691,0.00015129,2]
[407760053,1772770997251,-250.0,0.00015144,2]
[407760054,1772771011999,-300.0,0.00015157,2]
[407760055,1772771026373,322.33388239,0.00015116,2]
[407760056,1772771028173,-1244.62,0.00015158,2]
[407760057,1772771035085,502.0,0.00014,2]
[407760058,1772771035139,200.0,0.00014928,2]
[407760059,1772771046756,166.0,0.00015201,2]
[407760060,1772771048250,153.0,0.00015201,2]
[407760061,1772771061300,-250.0,0.00015211,2]
[407760062,1772771063972,304.66,0.0001505,2]
[407760063,1772771064515,304.65,0.0001505,2]
[407760064,1772771065314,304.65,0.0001505,2]
[407760065,1772771065859,304.65,0.0001505,7]
[407760066,1772771073603,-1000.0,0.00015216,2]
[407760067,1772771106855,202.0,0.00015216,2]
[407760068,1772771122850,-428.42,0.00015216,2]
[407760069,1772771135054,-322.33388237,0.00015386,2]
[407760070,1772771137261,2700.46,0.00014986,2]
[407760071,1772771140121,200.0,0.00015012,2]
[407760072,1772771189159,598.39,0.0001502,2]
[407760073,1772771235855,500.0,0.00012,2]
[407760074,1772771235907,500.0,0.00012,2]
[407760075,1772771235935,500.0,0.00012,2]
[407760076,1772771236374,504.25316934,0.00012,2]
[407760077,1772771236403,500.0,0.00012,2]
[407760078,1772771236460,820.02404198,0.00010646,2]
[407760079,1772771236884,500.0,0.00012,2]
[407760080,1772771237102,571.77326613,0.00012,2]
[407760081,1772771237379,500.0,0.00010646,2]
[407760082,1772771238227,500.0,0.00010646,2]
[407760083,1772771239874,850.78003177,0.00010646,2]
[407760084,1772771255080,-322.33388237,0.00015656,2]
[407760085,1772771255100,-383.49120159,0.00015699,2]
[407760086,1772771279877,1500.0,0.00015037,2]
[407760087,1772771288452,3500.01,0.00015616,2]
[407760088,1772771288476,5000.01,0.00015616,2]
[407760089,1772771288500,5000.01,0.00015616,2]
[407760090,1772771288523,5000.01,0.00015616,2]
[407760091,1772771288548,10000.01,0.00015616,2]
[407760092,1772771316524,2858.0,0.00014,5]
[407760093,1772771347713,2673.0,0.00014,5]
[407760094,1772771372078,-300.0,0.00015614,2]
[407760095,1772771372101,-196.08705318,0.00015615,2]
[407760096,1772771372121,-500.0,0.00015615,2]
[407760097,1772771372142,-228.59908471,0.00015615,2]
[407760098,1772771372163,-423.92866601,0.00015615,2]
[407760099,1772771372188,-500.0,0.00015615,2]
[407760100,1772771372214,-500.0,0.00015615,2]
[407760101,1772771372238,-500.0,0.00015615,2]
[407760102,1772771372263,-500.0,0.00015615,2]
[407760103,1772771372288,-500.0,0.00015615,2]
[407760104,1772771372312,-500.0,0.00015615,2]
[407760105,1772771372336,-500.0,0.00015615,2]
[407760106,1772771372364,-500.0,0.00015615,2]
[407760107,1772771372390,-500.0,0.00015615,2]
[407760108,1772771372415,-500.0,0.00015615,2]
[407760109,1772771372440,-500.0,0.00015615,2]
[407760110,1772771372464,-500.0,0.00015615,2]
[407760111,1772771372489,-500.0,0.00015615,2]
[407760112,1772771372512,-23.21251619,0.00015615,2]
[407760113,1772771372916,511.62329168,0.00015594,2]
[407760114,1772771399045,502.0,0.00014,2]
[407760115,1772771407937,152.0,0.00015605,2]
[407760116,1772771416063,3193.24959451,0.000156,2]
[407760117,1772771416337,537.13758637,0.00015598,2]
[407760118,1772771424801,-151.0,0.00015613,2]
[407760119,1772771424831,-250.0,0.00015613,2]
[407760120,1772771429473,179.37004762,0.00015606,2]
[407760121,1772771431967,-1200.0,0.00015614,2]
[407760124,1772771431996,-300.0,0.00015614,2]
[407760126,1772771432026,-300.0,0.00015614,2]
[407760130,1772771432285,-361.04264806,0.00015615,2]
[407760131,1772771432318,-115.74483575,0.00015615,2]
[407760132,1772771432327,-500.0,0.00015615,2]
[407760133,1772771432338,-307.03730807,0.00015615,2]
[407760134,1772771432347,-500.0,0.00015615,2]
[407760136,1772771432357,-500.0,0.00015615,2]
[407760138,1772771432367,-500.0,0.00015615,2]
[407760140,1772771432377,-500.0,0.00015615,2]
[407760142,1772771432386,-500.0,0.00015615,2]
[407760143,1772771432395,-500.0,0.00015615,2]
[407760144,1772771432404,-500.0,0.00015615,2]
[407760145,1772771432414,-500.0,0.00015615,2]
[407760146,1772771432424,-500.0,0.00015615,2]
[407760147,1772771432438,-500.0,0.00015615,2]
[407760148,1772771432447,-500.0,0.00015615,2]
[407760149,1772771432457,-500.0,0.00015615,2]
[407760150,1772771432467,-500.0,0.00015615,2]
[407760151,1772771432477,-500.0,0.00015615,2]
[407760152,1772771432487,-500.0,0.00015615,2]
[407760153,1772771432497,-500.0,0.00015615,2]
[407760154,1772771432507,-500.0,0.00015615,2]
[407760155,1772771432516,-500.0,0.00015615,2]
[407760156,1772771432526,-500.0,0.00015615,2]
[407760157,1772771432535,-500.0,0.00015615,2]
[407760158,1772771432544,-500.0,0.00015615,2]
[407760159,1772771432553,-500.0,0.00015615,2]
[407760160,1772771432562,-500.0,0.00015615,2]
[407760161,1772771432571,-500.0,0.00015615,2]
[407760162,1772771432580,-500.0,0.00015615,2]
[407760163,1772771432590,-190.0,0.00015615,2]
[407760164,1772771432600,-1051.8256204,0.00015615,5]
[407760165,1772771432609,-595952.41744415,0.00015616,2]
[407760166,1772771432621,-873.20778669,0.00015616,2]
[407760167,1772771432636,-1186.8261432,0.00015616,2]
[407760168,1772771432647,-1961.12667449,0.00015616,2]
[407760169,1772771432662,-1482.9015306,0.00015616,2]
[407760170,1772771432673,-666.96670514,0.00015616,2]
[407760171,1772771432684,-266.38014877,0.00015616,2]
[407760172,1772771438166,-2020.0,0.00015616,2]
[407760173,1772771438180,-625.39790105,0.00015616,2]
[407760174,1772771438193,-1862.51608116,0.00015616,2]
[407760175,1772771438223,-831191.04898475,0.00015616,2]
[407760176,1772771438233,-1004.55602663,0.00015698,2]
[407760177,1772771438242,-275.30714541,0.000157,2]
[407760178,1772771438252,-810.00661904,0.000157,2]
[407760179,1772771438261,-542.65688223,0.000157,2]
[407760180,1772771438272,-690.44496808,0.000157,2]
[407760181,1772771438282,-150.60109731,0.000157,2]
[407760182,1772771438294,-9999.99,0.00015716,2]
[407760183,1772771438303,-29999.99,0.00015716,2]
[407760184,1772771438314,-5679.06730266,0.00015755,2]
[407760185,1772771438326,-444.1157,0.00015755,2]
[407760186,1772771438335,-3490.4742,0.00015755,2]
[407760187,1772771438345,-5839.1844,0.00015755,2]
[407760188,1772771438354,-341.12159711,0.00015756,2]
[407760189,1772771438363,-2476.26589481,0.00015756,2]
[407760190,1772771438374,-3991.55051219,0.00015756,2]
[407760191,1772771438384,-2500.0,0.00015756,2]
[407760192,1772771438394,-500.0,0.00015756,2]
[407760193,1772771438404,-311.10483949,0.00015793,2]
[407760194,1772771438416,-982.57420961,0.0001583,2]
[407760195,1772771438428,-5700.0,0.00015836,2]
[407760196,1772771438439,-151.0,0.00015847,2]
[407760197,1772771438450,-151.0,0.00015847,2]
[407760198,1772771438459,-151.0,0.00015847,2]
[407760199,1772771438469,-200.0,0.00015847,2]
[407760200,1772771438479,-151.0,0.00015847,2]
[407760202,1772771438499,-151.0,0.00015847,2]
[407760204,1772771438510,-151.0,0.00015847,2]
[407760206,1772771438519,-151.0,0.00015847,2]
[407760208,1772771438529,-151.0,0.00015847,2]
[407760210,1772771438538,-151.0,0.00015847,2]
[407760212,1772771438547,-151.0,0.00015847,2]
[407760214,1772771438556,-151.0,0.00015847,2]
[407760216,1772771438566,-151.0,0.00015847,2]
[407760218,1772771438575,-151.0,0.00015847,2]
[407760220,1772771438586,-151.0,0.00015847,2]
[407760222,1772771438597,-1240.99,0.00015847,2]
[407760224,1772771438607,-1105.048,0.00015853,2]
[407760226,1772771438617,-500.0,0.00015853,2]
[407760228,1772771438627,-154.636,0.00015853,2]
[407760230,1772771438638,-500.0,0.00015855,2]
[407760232,1772771438648,-500.0,0.00015855,2]
[407760234,1772771438658,-500.0,0.00015855,2]
[407760236,1772771438668,-500.0,0.00015855,2]
[407760238,1772771438678,-500.0,0.00015855,2]
[407760240,1772771438688,-500.0,0.00015855,2]
[407760242,1772771438697,-500.0,0.00015855,2]
[407760244,1772771438707,-500.0,0.00015855,2]
[407760246,1772771438716,-500.0,0.00015855,2]
[407760248,1772771438726,-500.0,0.00015855,2]
[407760250,1772771438735,-500.0,0.00015855,2]
[407760252,1772771438744,-500.0,0.00015855,2]
[407760254,1772771438754,-500.0,0.00015855,2]
[407760257,1772771438767,-500.0,0.00015855,2]
[407760259,1772771438778,-500.0,0.00015855,2]
[407760261,1772771438788,-500.0,0.00015855,2]
[407760263,1772771438798,-500.0,0.00015855,2]
[407760265,1772771438808,-500.0,0.00015855,2]
[407760267,1772771438818,-500.0,0.00015855,2]
[407760269,1772771438827,-500.0,0.00015855,2]
[407760271,1772771438838,-500.0,0.00015855,2]
[407760273,1772771438847,-500.0,0.00015855,2]
[407760275,1772771438858,-500.0,0.00015855,2]
[407760277,1772771438867,-500.0,0.00015855,2]
[407760279,1772771438876,-500.0,0.00015855,2]
[407760281,1772771438886,-500.0,0.00015855,2]
[407760283,1772771438895,-500.0,0.00015855,2]
[407760285,1772771438906,-500.0,0.00015855,2]
[407760287,1772771438916,-500.0,0.00015855,2]
[407760289,1772771438926,-500.0,0.00015855,2]
[407760291,1772771438935,-500.0,0.00015855,2]
[407760293,1772771438944,-500.0,0.00015855,2]
[407760295,1772771438954,-500.0,0.00015855,2]
[407760297,1772771438964,-500.0,0.00015855,2]
[407760299,1772771438974,-500.0,0.00015855,2]
[407760301,1772771438983,-500.0,0.00015855,2]
[407760303,1772771438993,-514.05090032,0.00015855,2]
[407760305,1772771439002,-500.0,0.00015855,2]
[407760307,1772771439012,-500.0,0.00015855,2]
[407760309,1772771439021,-500.0,0.00015855,2]
[407760311,1772771439030,-173.92959413,0.00015855,2]
[407760313,1772771439040,-500.0,0.00015855,2]
[407760315,1772771439053,-500.0,0.00015855,2]
[407760317,1772771439063,-500.0,0.00015855,2]
[407760320,1772771439072,-500.0,0.00015855,2]
[407760322,1772771439082,-500.0,0.00015855,2]
[407760324,1772771439092,-500.0,0.00015855,2]
[407760326,1772771439102,-500.0,0.00015855,2]
[407760328,1772771439111,-500.93269978,0.00015855,2]
[407760330,1772771439121,-500.0,0.00015855,2]
[407760332,1772771439130,-500.0,0.00015855,2]
[407760334,1772771439140,-500.0,0.00015855,2]
[407760336,1772771439150,-500.0,0.00015855,2]
[407760338,1772771439160,-500.0,0.00015855,2]
[407760340,1772771439170,-500.0,0.00015855,2]
[407760342,1772771439182,-500.0,0.00015855,2]
[407760344,1772771439191,-507.4624222,0.00015855,2]
[407760346,1772771439201,-500.0,0.00015855,2]
[407760348,1772771439211,-500.0,0.00015855,2]
[407760350,1772771439220,-500.0,0.00015855,2]
[407760352,1772771439230,-500.0,0.00015855,2]
[407760354,1772771439239,-500.0,0.00015855,2]
[407760356,1772771439249,-500.0,0.00015855,2]
[407760358,1772771439259,-500.0,0.00015855,2]
[407760361,1772771439269,-500.0,0.00015855,2]
[407760363,1772771439278,-500.0,0.00015855,2]